Cogmind - Beta 13 @@@ ROGUE MODE // 2024.05.22 @ 21:07:30 Player: kupcio12 Result: Destroyed by G-47 Trooper with Particle Gun Performance ------------- Evolutions (2) 1000 Regions Visited (6) 1200 Robots Destroyed (51) 255 Value Destroyed (1555) 1555 Prototype IDs (10) 200 Alien Tech Used (0) 0 Bonus (424) 424 TOTAL SCORE: 4634 Bonus ------- High Alert Combat Kills 124 Aligned with FarCom 300 Cogmind --------- Core Integrity 0/550 Matter 109/450 Energy 96/100 System Corruption 0% Temperature Hot (237) Movement Core (400) Ox7 Location -8/Materials Parts ------- > --- POWER (2) -------- (None) > --- PROPULSION (2) --- (None) > --- UTILITY (3) ------ Large Storage Unit Large Matter Pod > --- WEAPON (4) ------- (None) > --- INVENTORY (15) --- Wheel Compact Wheel Compact Wheel Compact Wheel Compact Wheel Improved Heat Sink Large Storage Unit Large Battery (200) Hardlight Generator AWS/Gauss Flak Cannon Flak Cannon Peak State ------------ > --- POWER ------------ Deuterium Engine Deuterium Engine > --- PROPULSION ------- Wheel Compact Wheel > --- UTILITY ---------- Large Storage Unit Large Matter Pod Weight Redist. System > --- WEAPON ----------- AWS/Gauss Flak Cannon Flak Cannon > --- INVENTORY -------- Wheel Compact Wheel Compact Wheel Compact Wheel Compact Wheel Improved Heat Sink Large Storage Unit Large Battery Hardlight Generator Particle Gun Ion Cannon Flak Gun Flak Cannon Flak Cannon Rocket Launcher [Rating: 37] Favorites ----------- Power Ion Engine Engine Ion Engine Power Core Light Nuclear Core Propulsion Compact Wheel Leg Aluminum Leg Wheel Compact Wheel Utility Large Storage Unit Device Weight Redist. System Storage Large Storage Unit Protection Weapon Shielding Weapon Small Laser Energy Gun Small Laser Ballistic Gun AWS/Gauss Ballistic Cannon Flak Cannon Launcher Grenade Launcher Special Weapon Field Lobotomy Kit Special Melee Weapon Datajack Build | -11 -10 -9 -9 -9 -8 -8 ------- Run | Yrd Mat Mat Min Exi Min Mat Slots Evolved 4 | . . 2 . . . 2 Power 1 | . . . . . . 1 Propulsion . | . . . . . . . Utility 1 | . . 1 . . . . Weapon 2 | . . 1 . . . 1 Parts Attached 47 | 6 5 4 5 6 1 20 Power 5 | 1 . . . . . 4 Engine 4 | 1 . . . . . 3 Core 1 | . . . . . . 1 Reactor . | . . . . . . . Propulsion 7 | 2 . . . . 1 4 Treads . | . . . . . . . Leg 2 | . . . . . 1 1 Wheel 5 | 2 . . . . . 3 Hover . | . . . . . . . Flight . | . . . . . . . Utility 12 | 1 2 1 3 3 . 2 Device 8 | . . 1 3 3 . 1 Storage 3 | 1 1 . . . . 1 Processor . | . . . . . . . Hackware . | . . . . . . . Protection 1 | . 1 . . . . . Artifact . | . . . . . . . Weapon 23 | 2 3 3 2 3 . 10 Energy Gun 9 | 2 . 3 2 1 . 1 Energy Cannon . | . . . . . . . Ballistic Gun 4 | . . . . 1 . 3 Ballistic Cannon 4 | . . . . . . 4 Launcher 4 | . 2 . . . . 2 Special Weapon 1 | . . . . 1 . . Impact Weapon . | . . . . . . . Slashing Weapon . | . . . . . . . Piercing Weapon . | . . . . . . . Special Melee Weapon 1 | . 1 . . . . . Unidentified Prototypes 5 | . . 1 1 3 . . Parts Lost 18 | . . 2 2 . 1 13 Power 2 | . . . . . . 2 Propulsion 4 | . . . . . 1 3 Utility 3 | . . . 2 . . 1 Weapon 9 | . . 2 . . . 7 Highest Loss Streak 12 | . . 1 2 . 1 12 To Critical Strikes . | . . . . . . . Average Slot Usage (%) 90 | . 87 97 98 94 87 85 Engine 12 | . 14 11 11 11 11 13 Leg 1 | . . . . . 10 . Wheel 19 | . 28 22 22 22 11 15 Device 12 | . . 8 17 22 22 11 Storage 12 | . 14 11 11 11 11 15 Protection 1 | . 2 11 3 . . . Energy Gun 15 | . 14 22 32 22 11 3 Ballistic Gun 4 | . . . . 5 11 9 Ballistic Cannon 4 | . . . . . . 12 Launcher 3 | . 12 10 . . . 1 Naked Turns . | . . . . . . . Heaviest Build 63 | 13 30 34 33 39 39 63 Greatest Support 38 | 32 32 32 38 38 22 38 Greatest Overweight (x) 10 | . . 1 1 1 1 10 Average Overweight (x) . | . . . . . 1 1 Largest Inventory Capacity 15 | 8 15 15 15 15 15 15 Average Capacity 14 | 6 11 15 15 15 15 15 Most Carried 15 | 6 13 15 15 15 15 15 Average Carried 13 | 2 9 14 14 14 14 14 Final Capacity 15 | 8 15 15 15 15 15 15 Final Carried 15 | 6 13 15 15 15 15 13 Class Distribution -------------------- 43% | Skirmisher 24% | Mutant 19% | Gunner 12% | Tank Dominant Class ---------------- Mutant | -10/Materials Tank | -9/Materials Gunner | -9/Mines Gunner | -9/Exiles Skirmisher | -8/Mines Skirmisher | -8/Materials Resources | -11 -10 -9 -9 -9 -8 -8 ----------- Run | Yrd Mat Mat Min Exi Min Mat Matter Collected 712 | 205 82 60 128 . 75 162 Remotely . | . . . . . . . Salvage Created 1557 | . 99 128 177 . 100 1053 Parts 105 | . 9 9 12 . 10 65 Haulers Intercepted . | . . . . . . . Recyclers Shooed 1 | . . . . . . 1 Parts Field Recycled . | . . . . . . . Retrieved Matter . | . . . . . . . Parts Self-Destructed . | . . . . . . . Prevented . | . . . . . . . Kills | -11 -10 -9 -9 -9 -8 -8 ------- Run | Yrd Mat Mat Min Exi Min Mat Combat Hostiles Destroyed 44 | . 4 4 6 . 5 25 Guns 28 | . . 1 6 . 5 16 Cannons 7 | . . . . . . 7 AOE 9 | . 4 3 . . . 2 Classes Destroyed 8 | . 1 1 1 . 1 4 Builder 3 | . . 1 . . . 2 Recycler 1 | . . . . . . 1 Watcher 3 | . . . . . . 3 Swarmer 14 | . . . 3 . 4 7 Grunt 21 | . 4 4 3 . . 10 Sentry 5 | . . . . . . 5 Specialist 2 | . . . . . . 2 Hunter 2 | . . . . . 1 1 Best Kill Streak 15 | . 2 3 3 . 4 15 Combat Bots Only 6 | . 2 2 3 . 4 6 Max Kills in Single Turn 3 | . 2 3 1 . 1 2 Gunslinging . | . . . . . . . Exploded 2 | . 2 2 . . . 1 Melee . | . . . . . . . Uniques/NPCs Destroyed . | . . . . . . . Combat | -11 -10 -9 -9 -9 -8 -8 -------- Run | Yrd Mat Mat Min Exi Min Mat Hostile Shots Fired 221 | . 5 22 19 . 16 159 Missed 60 | . 3 6 3 . 4 44 Damage Taken 2607 | . 42 192 180 . 126 2067 Core 686 | . 12 48 43 . 20 563 Absorbed by Shields . | . . . . . . . Redirected to Shielding 32 | . . 27 5 . . . Core Remaining (%) 89 | 100 95 . . . 72 . Volleys Fired 61 | . 5 6 14 . 8 28 Largest 4 | . 2 3 3 . 1 4 Hottest 161 | . 70 126 161 . 56 133 Shots Fired 216 | . 9 16 42 . 22 127 Gun 166 | . 5 12 42 . 22 85 Cannon 32 | . . . . . . 32 Launcher 18 | . 4 4 . . . 10 Special . | . . . . . . . Kinetic 126 | . . . . . 14 112 Thermal 72 | . 5 12 42 . 8 5 Explosive 16 | . 4 4 . . . 8 Electromagnetic 2 | . . . . . . 2 Robot Hit Streak 14 | . 6 12 4 . 12 14 Robot Miss Streak 11 | . 1 1 3 . 2 11 Penetration Max 1 | . . . . . 1 . Secondary Targets 1 | . . . 1 . . . Max Gunslinging Chain 1 | . . . 1 . . . Autonomous 75 | . . . . . 14 61 Shots Hit Robots 152 | . 7 13 21 . 19 92 Core Hits 107 | . 9 7 10 . 6 75 Critical Kills . | . . . . . . . Critical Parts Destroyed 2 | . . . . . 1 1 Critical Strikes 3 | . . . . . 1 2 Burn 1 | . . . . . . 1 Destroy 2 | . . . . . 1 1 Melee Attacks . | . . . . . . . Impact . | . . . . . . . Slashing . | . . . . . . . Piercing . | . . . . . . . Sneak Attacks . | . . . . . . . Combat Hostiles . | . . . . . . . Follow-up Attacks . | . . . . . . . Damage Inflicted 3862 | . 248 373 275 . 460 2506 Guns 2705 | . 43 124 275 . 460 1803 Cannons 434 | . . . . . . 434 Explosions 723 | . 205 249 . . . 269 Melee . | . . . . . . . Ramming . | . . . . . . . Kinetic 2539 | . . . . . 345 2194 Thermal 600 | . 43 124 275 . 115 43 Explosive 671 | . 205 249 . . . 217 Electromagnetic 52 | . . . . . . 52 Impact . | . . . . . . . Slashing . | . . . . . . . Piercing . | . . . . . . . Highest Corruption . | . . . . . . . Average Corruption . | . . . . . . . Corruption Purged . | . . . . . . . Corruption Blocked . | . . . . . . . Overload Shots . | . . . . . . . Overflow Damage . | . . . . . . . Projectiles . | . . . . . . . Explosions . | . . . . . . . Melee . | . . . . . . . Knockbacks 8 | . . . . . . 8 Impact . | . . . . . . . Kinetic 8 | . . . . . . 8 Secondary . | . . . . . . . Self-Inflicted Damage 89 | . 20 33 . . . 36 Shots 5 | . 1 2 . . . 2 Rammed . | . . . . . . . Targets Rammed . | . . . . . . . Kicked . | . . . . . . . Crushed . | . . . . . . . Highest Temperature 483 | . 39 72 341 . . 483 Average Temperature 160 | . 19 29 130 . . 225 Received Heat Transfer 720 | . 12 66 57 . . 585 Effects 11 | . . . 2 . . 9 Shutdowns 1 | . . . . . . 1 Energy Bleed 3 | . . . 2 . . 1 Interference 2 | . . . . . . 2 Matter Decay 1 | . . . . . . 1 Short Circuit 2 | . . . . . . 2 Damage (minor) 1 | . . . . . . 1 Damage (major) 1 | . . . . . . 1 Siege Activations . | . . . . . . . Robots Corrupted . | . . . . . . . Combat Hostiles . | . . . . . . . Parts Fried . | . . . . . . . Impact Corruptions . | . . . . . . . Robots Melted . | . . . . . . . Combat Hostiles . | . . . . . . . Parts Melted 1 | . . 1 . . . . Heat Transferred 1513 | . 100 298 634 . 296 185 Parts Sabotaged . | . . . . . . . Parts Stolen . | . . . . . . . Parts Stripped . | . . . . . . . Power Chain Reactions . | . . . . . . . Alert | -11 -10 -9 -9 -9 -8 -8 ------- Run | Yrd Mat Mat Min Exi Min Mat Peak Influence 620 | . 139 154 177 . 128 620 Initial 55 | . . 12 55 . . 49 Average 170 | . 41 56 88 . 90 354 Maximum Alert Level 2 | . . . . . . 2 Low Security (%) 71 | 100 100 100 100 . 100 20 Level 1 16 | . . . . . . 44 Level 2 12 | . . . . . . 35 Level 3 . | . . . . . . . Level 4 . | . . . . . . . Level 5 . | . . . . . . . High Security . | . . . . . . . Max Security . | . . . . . . . Squads Dispatched 9 | . 1 1 . . . 7 Investigation 4 | . . 1 . . . 3 Extermination . | . . . . . . . Reinforcement 5 | . 1 . . . . 4 Assault . | . . . . . . . Garrison . | . . . . . . . Intercept . | . . . . . . . Searches Triggered . | . . . . . . . Construction Impeded 1 | . . . . . . 1 Haulers Reinforced . | . . . . . . . Active Scanning Responses . | . . . . . . . Cargo Convoy Interrupts . | . . . . . . . Stealth | -11 -10 -9 -9 -9 -8 -8 --------- Run | Yrd Mat Mat Min Exi Min Mat Distress Signals 3 | . . 1 . . . 2 Communications Jammed . | . . . . . . . Distress Signals . | . . . . . . . Times Spotted 59 | . 9 8 6 . 5 31 Peak Tracking Total 9 | . 3 4 3 . 4 9 Tactical Retreats 3 | . 1 . . . . 2 Traps | -11 -10 -9 -9 -9 -8 -8 ------- Run | Yrd Mat Mat Min Exi Min Mat Traps Triggered 1 | . . . . . . 1 Indirectly . | . . . . . . . Trap Hack Attempts . | . . . . . . . Triggered . | . . . . . . . Disarmed . | . . . . . . . Reprogrammed . | . . . . . . . Reused . | . . . . . . . Traps Extracted . | . . . . . . . Installed . | . . . . . . . Triggered . | . . . . . . . Machines | -11 -10 -9 -9 -9 -8 -8 ---------- Run | Yrd Mat Mat Min Exi Min Mat Machines Disabled 1 | . 1 . . . . . Max in Single Turn 1 | . 1 . . . . . Machines Repaired . | . . . . . . . Machines Dismantled . | . . . . . . . Machines Sabotaged . | . . . . . . . Overloaded Fab Kills . | . . . . . . . Hacking | -11 -10 -9 -9 -9 -8 -8 --------- Run | Yrd Mat Mat Min Exi Min Mat Machines Accessed 13 | . 4 3 1 . . 5 Terminals 11 | . 3 3 1 . . 4 Fabricators . | . . . . . . . Repair Stations . | . . . . . . . Recycling Units 2 | . 1 . . . . 1 Scanalyzers . | . . . . . . . Garrison Access . | . . . . . . . Total Hacks 45 | . 13 10 5 . . 17 Successful 22 | . 7 4 2 . . 9 Failed 23 | . 6 6 3 . . 8 Catastrophic 3 | . 2 . . . . 1 Database Lockouts . | . . . . . . . Manual 1 | . . . . 1 . . Terminals 40 | . 11 10 5 . . 14 Fabricators . | . . . . . . . Repair Stations . | . . . . . . . Recycling Units 5 | . 2 . . . . 3 Scanalyzers . | . . . . . . . Garrison Access . | . . . . . . . Terminal Hacks 20 | . 7 4 2 . . 7 Record 6 | . 1 1 2 . . 2 Robot Analysis 2 | . 1 1 . . . . Prototype ID Bank 3 | . 1 . . . . 2 Emergency Access Points 2 | . 2 . . . . . Alert Level 1 | . . 1 . . . . Unreport Threat 1 | . 1 . . . . . Locate Traps 1 | . 1 . . . . . Dispatch Records 1 | . . . . . . 1 Transport Status 1 | . . . . . . 1 Recall Investigation 1 | . . . . . . 1 Zone Layout 1 | . . 1 . . . . Fabricator Hacks . | . . . . . . . Repair Station Hacks . | . . . . . . . Recycling Unit Hacks 2 | . . . . . . 2 Retrieve Matter 1 | . . . . . . 1 Retrieve Components 1 | . . . . . . 1 Scanalyzer . | . . . . . . . Garrison Access Hacks . | . . . . . . . Unauthorized Hacks . | . . . . . . . Terminals . | . . . . . . . Fabricators . | . . . . . . . Repair Stations . | . . . . . . . Recycling Units . | . . . . . . . Scanalyzers . | . . . . . . . Garrison Access . | . . . . . . . Data Cores Recovered . | . . . . . . . Used . | . . . . . . . Hacking Detections 12 | . 3 3 1 . . 5 Full Trace Events 4 | . . 1 . . . 3 Feedback Events . | . . . . . . . Feedback Blocked . | . . . . . . . Robot Schematics Acquired . | . . . . . . . Robots Built . | . . . . . . . Authchips . | . . . . . . . Time . | . . . . . . . Total Robot Build Rating . | . . . . . . . Part Schematics Acquired . | . . . . . . . Parts Built . | . . . . . . . Authchips . | . . . . . . . Time . | . . . . . . . Total Part Build Rating . | . . . . . . . Parts Repaired . | . . . . . . . Time . | . . . . . . . Parts Recycled . | . . . . . . . Recycled Matter . | . . . . . . . Retrieved Matter 294 | . . . . . . 294 Retrieved Components 9 | . . . . . . 9 Parts Scanalyzed . | . . . . . . . Part Schematics Acquired . | . . . . . . . Parts Damaged . | . . . . . . . Bothacking | -11 -10 -9 -9 -9 -8 -8 ------------ Run | Yrd Mat Mat Min Exi Min Mat Used RIF Installer . | . . . . . . . Robots Hacked . | . . . . . . . Non-combat . | . . . . . . . Combat . | . . . . . . . Robot Hacks Applied . | . . . . . . . Relay Couplers Released . | . . . . . . . Fabnet Peak Effective % . | . . . . . . . Robots Rewired . | . . . . . . . Allies Hacked . | . . . . . . . Hacks Repelled . | . . . . . . . Allies | -11 -10 -9 -9 -9 -8 -8 -------- Run | Yrd Mat Mat Min Exi Min Mat Total Allies . | . . . . . . . Largest Group . | . . . . . . . Highest-Rated Group . | . . . . . . . Highest-Rated Ally . | . . . . . . . Total Orders . | . . . . . . . Ally Attacks . | . . . . . . . Total Damage . | . . . . . . . Kills . | . . . . . . . Allies Corrupted . | . . . . . . . Allies Melted . | . . . . . . . Intel | -11 -10 -9 -9 -9 -8 -8 ------- Run | Yrd Mat Mat Min Exi Min Mat Robot Analysis Total 2 | . 1 1 . . . . Derelict Logs Recovered . | . . . . . . . Drone Launches . | . . . . . . . Drone Recoveries . | . . . . . . . Exploration | -11 -10 -9 -9 -9 -8 -8 ------------- Run | Yrd Mat Mat Min Exi Min Mat Turns Passed 2468 | 65 438 156 487 257 265 800 Spaces Moved 1779 | 50 349 110 410 225 205 430 Core 5 | 2 . . . . . 3 Treads . | . . . . . . . Legs . | . . . . . . . Wheels 1774 | 48 349 110 410 225 205 427 Hover . | . . . . . . . Flight . | . . . . . . . Fastest Speed 50 | 50 100 100 100 100 115 105 Average Speed 106 | 98 100 109 100 107 115 113 Slowest Speed 550 | 100 100 115 115 115 115 550 Overloaded Moves . | . . . . . . . Propulsion Burnouts . | . . . . . . . Robots Hopped . | . . . . . . . Cave-ins Triggered . | . . . . . . . Exploration Rate (%) 41 | 4 42 12 87 61 35 51 Regions Visited 6 Branch Regions 3 Pre-discovered Areas . | . . . . . . . Known Exits Taken . | . . . . . . . Unknown Exits Taken 6 | 1 1 1 1 1 1 . Scrap Searched 1 | . . . 1 . . . Spaces Dug . | . . . . . . . Terrain Destroyed 120 | . 13 11 . . 6 90 Melee . | . . . . . . . Projectile 37 | . . . . . 6 31 AOE 83 | . 13 11 . . . 59 Terrain Rammed . | . . . . . . . Walls Destroyed . | . . . . . . . Machines Disabled . | . . . . . . . Actions | -11 -10 -9 -9 -9 -8 -8 --------- Run | Yrd Mat Mat Min Exi Min Mat Total 2235 | 62 428 131 454 241 226 693 Wait 271 | 1 59 6 21 1 12 171 Move 1773 | 49 348 109 409 224 204 430 Hop . | . . . . . . . Pick Up 44 | 6 8 5 3 2 1 19 Fast Attach 21 | 6 2 . 2 5 . 6 Attach 13 | . . 3 2 . 1 7 Detach 3 | . 1 . . . . 2 Swap 14 | . 3 2 1 1 . 7 Drop 35 | . 2 . 2 8 . 23 Fire 61 | . 5 6 14 . 8 28 Melee . | . . . . . . . Ram . | . . . . . . . Kick . | . . . . . . . Crush . | . . . . . . . Escape Stasis . | . . . . . . . Rewire . | . . . . . . . Trap . | . . . . . . . Miscellaneous . | . . . . . . . Route ------- -11/Scrapyard -10/Materials (discovered 2 exits: *Mat x2) -9/Materials -9/Mines -9/Exiles -8/Mines -8/Materials (discovered 1 exit: [*Fac]) History --------- Turn | Location | Event 9 | -11/Scrapyard | Discovered new exit (range 16) 66 | -11/Scrapyard | Entered Materials 311 | -10/Materials | Build established: Mutant 382 | -10/Materials | Discovered new exit (range 16) 457 | -10/Materials | Discovered new exit (range 11) 504 | -10/Materials | Entered another Materials area 504 | -9/Materials | Evolved 2 slots: Utility x1, Weapon x1 643 | -9/Materials | Discovered new exit (range 10) 660 | -9/Materials | Entered Mines 795 | -9/Mines | Build established: Tank 1107 | -9/Mines | Found a damaged Exp. Sensor Array with a note attached 1108 | -9/Mines | Build established: Gunner 1109 | -9/Mines | Found Prototype Device 1110 | -9/Mines | Identified Exp. Sensor Array 1131 | -9/Mines | Received a Rocket Launcher from a helpful Derelict 1142 | -9/Mines | Deemed a non-threat by the Exiles lab entrance 1143 | -9/Mines | Discovered new exit (range 5) 1147 | -9/Mines | Entered Exiles 1171 | -9/Exiles | Met 8R-AWN 1188 | -9/Exiles | Met EX-HEX 1217 | -9/Exiles | Met EX-BIN 1229 | -9/Exiles | Aligned with FarCom system 1230 | -9/Exiles | Given EX-Vault access code 1256 | -9/Exiles | Opened EX-Vault 1263 | -9/Exiles | Found Prototype Device 1263 | -9/Exiles | Identified PSU Rigger 1272 | -9/Exiles | Found Prototype Special Weapon 1272 | -9/Exiles | Identified Field Lobotomy Kit 1281 | -9/Exiles | Found Prototype Ballistic Gun 1281 | -9/Exiles | Identified AWS/Gauss 1314 | -9/Exiles | Warned to stay clear of 0b10 Research branches 1346 | -9/Exiles | Met EX-DEC 1385 | -9/Exiles | Discovered new exit (range 14) 1404 | -9/Exiles | Left Exiles lab with AWS/Gauss 1404 | -9/Exiles | Entered Mines 1629 | -8/Mines | Discovered new exit (range 10) 1669 | -8/Mines | Entered Materials 1669 | -8/Materials | Evolved 2 slots: Power x1, Weapon x1 1719 | -8/Materials | Build established: Skirmisher 2308 | -8/Materials | Discovered new exit (range 14) 2446 | -8/Materials | Core integrity fell below 50% 2465 | -8/Materials | Core integrity fell below 20% 2469 | -8/Materials | Destroyed by G-47 Trooper with Particle Gun Last Messages --------------- 02447_ Overheating: Short circuit. 02447_ Critical hit (Burn: +37). 02449_ The unstable cave ceiling collapses. 02449_ Knocked back. 02449_ G-47 Trooper destroyed. 02450_ Overheating: Broken Flak Cannon damaged (-31). 02450_ Acquired 7 matter. 02453_ Broken Flak Cannon destroyed. 02453_ G-47 Trooper knocked back. 02455_ The unstable cave ceiling collapses. 02456_ Weight Redist. System destroyed. 02461_ Flak Cannon destroyed. 02462_ The unstable cave ceiling collapses. 02462_ Acquired 11 matter. 02463_ Overheating: Matter decay (-21). 02464_ Flak Gun destroyed. 02466_ H-61 Shepherd misfires. 02466_ O-16 Technician destroyed. [Achievement: Achiever] Map ----- +----------------------------------------------------+ | # # ! #???# """ ?????? | | # # #???# """ "???? | | + + #???# ?? | | # # """ """ #???# ? | | [ # # """ """ ##### ?? | | # # """ """ + ####+####### ##+#########?? | | # ##################/ [ #??? #????????????? | | # #????????????????# #??? #????????????? | | # #????????????????# """ #??? #????????????? | | #### #????????????????# """ #??? #????????????? | | # #????????????????# """ +??? #????????????? | | + #????????????????# #????#????????????? | | # #??????########??########?????????????????? | | **!# #??????#[ #???????????????????????????? | | *! # ######## #???????????????????????????? | | *! # # """ #???????????????????????????? | | #### # """ #???????????????????????????? | | ???# # """ #???????????????????????????? | | ???######## + #???????????????????????????? | | ??????????# ###########????????????????????????? | | ??????????# # ##?????#######???????????? | | ??????????# # """ """ #"######## T #???????????? | | ??????????# # """ """ #" # #???????????? | | ??????????# # """ """ #" #???????????? | | ??????????# # ## *! #???????????? | | ??????????+ + ! ;@ g! #???????????? | | ??????????# # # = !g #???????????? | | ??????????# # # = #???????????? | | ??????????# ############ # g % ###+###???? | | ??????????# =%g%! *% *% #??? | | ??????????# % [%= % H < #??? | | ??????????# = #??? | | ??????????#########/##### # ####??????? | | ????????????????????????# ## ###?????????? | | ????????????????????????#== [[[# ##???????????? | | ????????????????????????#==[[ [# ##????????????? | | ????????????????????????############?????????????? | | ?????????????????????????????????????????????????? | | ?????????????????????????????????????????????????? | | | | | | | | | | | | | | | | | | | | | | | +----------------------------------------------------+ Best States ------------- Heat Dissipation 41 Energy Generation 23 Energy Capacity 450 Matter Stores 450 Matter Capacity 450 Sight Range 16 Robot Scan Range 20 Terrain Scan Density 10 Additional Mass Support 6 Weapon Shielding 33 Evasion (%) 40 Item Schematics ----------------- None Robot Schematics ------------------ None Fabricated ------------ Nothing Alien Tech Used ----------------- None Achievements -------------- Achiever More Dakka Please Challenges ------------ None Game ------ Seed MinesnifferArcReplicator Manual? 0 Play Time 00:39:34 Cumulative 13.0 hours Start 2024.05.22 @ 20:26:42 End 2024.05.22 @ 21:07:30 Sessions 1 Manual Loads 0 Difficulty Rogue Special Mode None Game No. 11 Rogue 6 Adventurer 5 Explorer 0 Win Type - Total 0 Types 0/0/0/0/0/0/0/0/0 Lore% 19 Gallery% 19 Achievement% 25 Wizard Run 0 Options --------- Layout 1 ASCII 0 Keyboard 1 Movement Numpad Keybinds 0 Fullscreen 1 Font 20/SmallcapsGlow Map View 50x35 Zoom Use 51% Tactical HUD 1 Map Filters NONE Filters NONE Steam X RUN: 8830bb8f-0df7-4ebe-b803-55c944021a75